[Event "Chile-ch Women 2019"]
[Site "Santiago Las Condes"]
[Date "2019.02.12"]
[Round "2.7"]
[White "Varela Varas, Patricia"]
[Black "Sanchez Tobar, Francisca Valentina"]
[Result "0-1"]
[ECO "C22"]
[WhiteElo "1540"]
[BlackElo "1817"]
[Annotator "NA RC"]
[PlyCount "104"]
[EventDate "2019.02.12"]
[EventType "swiss"]
[EventCountry "CHI"]
[SourceTitle "playchess.com"]
[Source "ChessBase"]
[SourceQuality "1"]
[TimeControl "5400+30"]

1. e4 {[%emt 0:00:00]} e5 {[%emt 0:01:04]} 2. d4 {[%emt 0:00:00]} exd4 {[%emt 0:00:17]} 3. Qxd4 {[%emt 0:00:00]} Nc6 {[%emt 0:00:05]} 4. Qe3 {[%emt 0:00:00]} Nf6 {[%emt 0:00:07]} 5. Nc3 {[%emt 0:00:00]} Bb4 {[%emt 0:00:19]} 6. Bd2 {[%emt 0:00:01]} O-O {[%emt 0:00:12]} 7. O-O-O {[%emt 0:00:04]} Re8 {[%emt 0:00:13]} 8. Qg3 {[%emt 0:00:08]} Nxe4 {[%emt 1:31:43]} 9. Nxe4 {[%emt 0:00:55]} Rxe4 {[%emt 0:00:00]} 10. c3 {[%emt 0:00:08] C22: Centre Game} Bf8 {[%emt 0:00:00]} (10... Be7 11. f4 d5 12. Bd3 Bf5 13. Nf3 Qd7 14. Bxe4 Bxe4 15. Be3 Na5 16. Bd4 f6 17. Rhe1 Qa4 18. Rxe4 dxe4 {0-1 (31) Kriebel,T (2445)-Michalik,P (2554) Slovakia 2017}) 11. Bd3 {[%emt 0:00:25]} Re8 {[%emt 0:00:00]} 12. Nf3 {[%emt 0:01:15]} d6 {[%emt 0:00:00]} 13. Ng5 $1 {[%emt 0:08:36]} g6 $1 {[%emt 0:00:00]} 14. f4 {[%emt 0:06:11]} ({White should try} 14. h4 $1 $14) 14... Ne7 {[%emt 0:00:00]} 15. Qh4 $146 {[%emt 0:12:36]} ({Predecessor:} 15. Qf3 Bg7 16. g4 f6 17. Ne4 f5 {1-0 (32) Smith,A (2145)-Bucher,G (2060) England 2014}) 15... h6 {[%emt 0:00:00]} 16. Nf3 {[%emt 0:02:10]} Bf5 {[%emt 0:00:00]} 17. Be2 {[%emt 0:01:45]} Nd5 {[%emt 0:00:00]} 18. Qf2 {[%emt 0:01:24]} Nf6 {[%emt 0:00:00]} 19. Qf1 {[%emt 0:04:54]} Ne4 {[%emt 0:00:00]} 20. Be1 {[%emt 0:03:01]} Bg7 {[%emt 0:00:00]} 21. Nd4 {[%emt 0:01:00]} Bxd4 {[%emt 0:00:40]} 22. Rxd4 {[%emt 0:00:21]} Qe7 {[%emt 0:00:17]} 23. g4 {[%emt 0:01:20]} Bd7 {[%emt 0:01:18]} 24. Bd1 {[%emt 0:03:23]} c5 {[%emt 0:01:13]} 25. Rc4 {[%emt 0:04:58]} Bb5 {[%emt 0:02:50]} 26. Rg1 {[%emt 0:03:49]} Bxc4 {[%emt 0:00:21]} 27. Qxc4 {[%emt 0:00:06] [#]} d5 $19 {[%emt 0:00:15]} 28. Qxd5 {[%emt 0:01:30]} Rad8 {[%emt 0:00:15]} 29. Qc4 {[%emt 0:00:33]} Qd6 {[%emt 0:00:25]} 30. Bb3 {[%emt 0:07:23]} Qxf4+ {[%emt 0:01:06]} 31. Kb1 {[%emt 0:00:30]} Nd2+ {[%emt 0:00:23]} 32. Bxd2 {[%emt 0:00:07]} Qxc4 {[%emt 0:00:03]} 33. Bxc4 {[%emt 0:00:10]} Rxd2 {[%emt 0:00:04]} 34. h4 {[%emt 0:01:01]} Kg7 {[%emt 0:01:42]} 35. h5 {[%emt 0:01:19]} Re4 {[%emt 0:01:13]} 36. Bb3 {[%emt 0:00:43]} Ree2 {[%emt 0:00:08]} 37. Rf1 {[%emt 0:01:20]} Rxb2+ {[%emt 0:00:07]} 38. Ka1 {[%emt 0:00:22]} Rf2 {[%emt 0:00:04]} 39. Re1 {[%emt 0:00:29]} Rbe2 {[%emt 0:00:02]} 40. Rd1 {[%emt 0:00:17]} gxh5 {[%emt 0:01:13]} 41. gxh5 {[%emt 0:00:14]} Re3 {[%emt 0:00:48]} 42. Rc1 {[%emt 0:01:10]} Rh3 {[%emt 0:00:26]} 43. Rg1+ {[%emt 0:01:41]} Kf6 {[%emt 0:00:12]} 44. Bd5 {[%emt 0:00:17]} b6 {[%emt 0:00:41]} 45. Rd1 {[%emt 0:02:57]} Rxh5 {[%emt 0:00:58]} 46. Bb3 {[%emt 0:00:14]} Rhf5 {[%emt 0:00:43]} 47. Rd6+ {[%emt 0:00:29]} Kg5 {[%emt 0:00:05]} 48. Rd7 {[%emt 0:00:33]} h5 {[%emt 0:00:43]} 49. Rxa7 {[%emt 0:00:24]} Re5 {[%emt 0:00:03]} 50. Rd7 {[%emt 0:00:41]} Re1+ {[%emt 0:00:02]} 51. Bd1 {[%emt 0:01:26]} Rff1 {[%emt 0:00:04]} 52. Rd5+ {[%emt 0:00:15]} f5 {[%emt 0:00:22]} 0-1

[Event "Chile-ch Women 2019"]
[Site "Santiago Las Condes"]
[Date "2019.02.12"]
[Round "2.8"]
[White "Luna Benalcazar, Gianella"]
[Black "abdala cancino, patricia anastassia"]
[Result "0-1"]
[ECO "D31"]
[WhiteElo "1804"]
[BlackElo "1534"]
[Annotator "NA RC"]
[PlyCount "90"]
[EventDate "2019.02.12"]
[EventType "swiss"]
[EventCountry "CHI"]
[SourceTitle "playchess.com"]
[Source "ChessBase"]
[SourceQuality "1"]
[TimeControl "5400+30"]

1. d4 {[%emt 0:00:00]} d5 {[%emt 0:00:00]} 2. c4 {[%emt 0:00:00]} e6 {[%emt 0:00:00]} 3. Nc3 {[%emt 0:01:05]} c6 {[%emt 0:00:08]} 4. cxd5 {[%emt 0:01:54]} exd5 {[%emt 0:00:12]} 5. Bf4 {[%emt 0:00:59]} Bd6 {[%emt 0:01:02]} 6. Bg3 {[%emt 0:02:01]} f5 {[%emt 0:02:39] D31: Queen's Gambit Declined: Semi-Slav without ...Nf6 (+ Marshall Gambit and Noteboom) and Exchange Variation lines without ...Nf6} (6... Ne7 7. e3 Nf5 8. Bxd6 Nxd6 9. Bd3 Bf5 10. Bxf5 Nxf5 11. Qg4 g6 12. e4 dxe4 13. Qxe4+ Ne7 14. h4 O-O {½-½ (43) Andreikin,D (2736)-Harikrishna,P (2766) Wijk aan Zee 2017}) 7. Bxd6 {[%emt 0:01:01]} Qxd6 {[%emt 0:00:08]} 8. Nf3 {[%emt 0:02:04]} Nf6 {[%emt 0:02:15]} 9. Ne5 {[%emt 0:06:56]} Nbd7 {[%emt 0:00:54]} 10. f4 {[%emt 0:00:42]} Ne4 {[%emt 0:00:29]} 11. e3 {[%emt 0:05:47]} O-O $146 {[%emt 0:04:16]} ({Predecessor:} 11... Nxc3 12. bxc3 O-O 13. Bd3 Nxe5 14. fxe5 Qh6 15. Qd2 f4 16. exf4 Rxf4 17. g3 Rf3 18. Qxh6 gxh6 19. Ke2 Rf8 {½-½ (19) Casafus,R (2360)-Diaz Hollemaert,N (2355) Buenos Aires 1998}) 12. Qc2 {[%emt 0:12:21]} Nxe5 {[%emt 0:04:45]} 13. fxe5 {[%emt 0:02:03]} (13. dxe5 $11 Qc5 14. Qc1) 13... Qh6 {[%emt 0:05:39]} 14. Nxe4 {[%emt 0:09:54]} Qxe3+ {[%emt 0:00:24]} 15. Qe2 {[%emt 0:00:50]} Qxe2+ {[%emt 0:00:21]} 16. Kxe2 {[%emt 0:01:02]} fxe4 {[%emt 0:00:10]} 17. Rc1 {[%emt 0:01:30]} Bg4+ {[%emt 0:00:41]} 18. Ke3 {[%emt 0:01:15]} Rf7 {[%emt 0:00:51]} 19. h3 {[%emt 0:00:47] [#]} Bh5 $1 {[%emt 0:00:37]} 20. b4 {[%emt 0:08:45]} a6 {[%emt 0:01:51]} 21. Rc2 {[%emt 0:15:21]} Raf8 {[%emt 0:01:06]} 22. Be2 {[%emt 0:00:52] [#]} Bxe2 $1 {[%emt 0:00:10]} 23. Rxe2 {[%emt 0:00:07]} Rf1 $19 {[%emt 0:00:37]} 24. Re1 {[%emt 0:02:15]} Rxh1 {[%emt 0:00:36]} 25. Rxh1 {[%emt 0:22:59]} Kf7 {[%emt 0:01:42]} 26. a4 {[%emt 0:00:00]} Ra8 {[%emt 0:01:04]} 27. Rb1 {[%emt 0:00:00]} Ke6 {[%emt 0:05:12]} 28. Rb2 {[%emt 0:00:00]} Rc8 {[%emt 0:01:50]} 29. Rf2 {[%emt 0:00:00]} Ke7 {[%emt 0:03:46]} 30. a5 {[%emt 0:00:00]} Rf8 {[%emt 0:00:46]} 31. Rxf8 {[%emt 0:00:00]} Kxf8 {[%emt 0:00:08]} 32. h4 {[%emt 0:00:00]} h6 {[%emt 0:01:06]} 33. h5 {[%emt 0:00:24]} Ke7 {[%emt 0:00:20]} 34. g4 {[%emt 0:01:19]} Kd7 {[%emt 0:00:28]} 35. Kf4 {[%emt 0:01:04]} Kc7 {[%emt 0:03:07]} 36. Ke3 {[%emt 0:00:59]} b6 {[%emt 0:00:29]} 37. axb6+ {[%emt 0:00:12]} Kxb6 {[%emt 0:00:06]} 38. Kd2 {[%emt 0:01:22]} Kc7 {[%emt 0:00:18]} 39. Ke3 {[%emt 0:00:48]} Kd7 {[%emt 0:00:22]} 40. Kf4 {[%emt 0:00:22]} Ke6 {[%emt 0:02:35]} 41. Ke3 {[%emt 0:00:32]} c5 {[%emt 0:02:06]} 42. dxc5 {[%emt 0:00:26]} Kxe5 {[%emt 0:00:10]} 43. Ke2 {[%emt 0:00:39]} d4 {[%emt 0:00:07]} 44. Kd2 {[%emt 0:00:18]} Kd5 {[%emt 0:00:12]} 45. Ke2 {[%emt 0:00:13]} a5 {[%emt 0:00:08]} 0-1

[Event "Chile-ch Women 2019"]
[Site "Santiago Las Condes"]
[Date "2019.02.13"]
[Round "3.1"]
[White "Vargas Banda, Valentina"]
[Black "Jorquera Cabello, Valentina"]
[Result "1-0"]
[ECO "B33"]
[WhiteElo "1682"]
[BlackElo "2016"]
[Annotator "NA RC"]
[PlyCount "92"]
[EventDate "2019.02.12"]
[EventType "swiss"]
[EventCountry "CHI"]
[SourceTitle "playchess.com"]
[Source "ChessBase"]
[SourceQuality "1"]
[TimeControl "5400+30"]

1. e4 {[%emt 0:00:00]} c5 {[%emt 0:01:02]} 2. Nf3 {[%emt 0:00:00]} Nc6 {[%emt 0:00:02]} 3. d4 {[%emt 0:00:05]} cxd4 {[%emt 0:00:06]} 4. Nxd4 {[%emt 0:00:06]} Nf6 {[%emt 0:00:05]} 5. Nc3 {[%emt 0:00:27]} e5 {[%emt 0:00:07]} 6. Ndb5 {[%emt 0:01:07]} d6 {[%emt 0:00:05]} 7. a4 {[%emt 0:00:17]} a6 {[%emt 0:03:53]} 8. Na3 {[%emt 0:00:52]} Be7 {[%emt 0:04:32]} 9. Bc4 {[%emt 0:05:00]} O-O {[%emt 0:01:03]} 10. O-O {[%emt 0:02:14]} Be6 {[%emt 0:05:40]} 11. Re1 {[%emt 0:03:22]} Nb4 {[%emt 0:09:52]} 12. Bg5 {[%emt 0:12:27]} Rc8 {[%emt 0:13:26]} 13. Bxf6 {[%emt 0:04:04]} Bxc4 {[%emt 0:08:55]} 14. Bxe7 {[%emt 0:13:31]} Qxe7 {[%emt 0:00:04]} 15. Re3 {[%emt 0:02:14]} Be6 {[%emt 0:01:31]} 16. Qd2 {[%emt 0:05:06]} f5 {[%emt 0:08:02]} 17. exf5 {[%emt 0:06:31]} Rxf5 {[%emt 0:00:14]} 18. Ne4 {[%emt 0:00:59]} d5 {[%emt 0:11:40]} 19. Ng3 {[%emt 0:02:13]} Rg5 {[%emt 0:01:25]} 20. Rae1 {[%emt 0:05:14]} Nc6 {[%emt 0:14:50]} 21. c3 {[%emt 0:05:56]} Rg6 {[%emt 0:02:13]} 22. Nc2 {[%emt 0:02:34]} Qh4 {[%emt 0:04:13]} 23. Nd4 {[%emt 0:08:02]} Nxd4 {[%emt 0:00:36]} 24. cxd4 {[%emt 0:06:02]} e4 {[%emt 0:00:06]} 25. Nf1 {[%emt 0:03:57]} Bd7 {[%emt 0:07:25]} 26. b3 {[%emt 0:01:47]} Rgc6 {[%emt 0:00:10]} 27. Rg3 {[%emt 0:00:44]} Rc2 {[%emt 0:01:31]} 28. Qg5 {[%emt 0:02:49]} Qxg5 {[%emt 0:00:02]} 29. Rxg5 {[%emt 0:00:11]} Rf8 {[%emt 0:00:59]} 30. Ne3 {[%emt 0:02:25]} Rcxf2 {[%emt 0:00:18]} 31. Nxd5 {[%emt 0:02:39]} Be6 {[%emt 0:00:50]} 32. Ne7+ {[%emt 0:00:43]} Kh8 {[%emt 0:00:01]} 33. d5 {[%emt 0:00:23]} Bd7 {[%emt 0:00:33]} 34. h3 {[%emt 0:01:38]} Rb2 {[%emt 0:00:19]} 35. Rxe4 {[%emt 0:00:28]} Rxb3 {[%emt 0:00:40]} 36. Rh4 {[%emt 0:00:28]} Re8 {[%emt 0:00:14]} 37. Re5 {[%emt 0:00:53]} h6 {[%emt 0:01:10]} 38. Rd4 {[%emt 0:00:38]} Kh7 {[%emt 0:00:25]} 39. d6 {[%emt 0:00:24]} b5 {[%emt 0:00:27]} 40. axb5 {[%emt 0:00:24]} axb5 {[%emt 0:01:14]} 41. Rc5 {[%emt 0:00:12]} Re3 {[%emt 0:00:00]} 42. Rc7 {[%emt 0:00:55]} Rd8 {[%emt 0:00:27]} 43. Kf2 {[%emt 0:00:28]} Re6 {[%emt 0:00:19]} 44. g4 {[%emt 0:00:33]} b4 {[%emt 0:00:28]} 45. Rb7 {[%emt 0:00:25]} Be8 {[%emt 0:00:42]} 46. Nf5 {[%emt 0:00:28]} Bd7 {[%emt 0:01:04]} 1-0

[Event "Chile-ch Women 2019"]
[Site "Santiago Las Condes"]
[Date "2019.02.13"]
[Round "3.2"]
[White "Aguilera Merlet, Melisa Paz"]
[Black "Gomez Barrera, Javiera Belen"]
[Result "0-1"]
[ECO "A48"]
[WhiteElo "1653"]
[BlackElo "1990"]
[Annotator "NA RC"]
[PlyCount "90"]
[EventDate "2019.02.12"]
[EventType "swiss"]
[EventCountry "CHI"]
[SourceTitle "playchess.com"]
[Source "ChessBase"]
[SourceQuality "1"]
[TimeControl "5400+30"]

1. d4 {[%emt 0:02:19]} Nf6 {[%emt 0:00:00]} 2. Nf3 {[%emt 0:00:51]} g6 {[%emt 0:00:00]} 3. Bf4 {[%emt 0:01:07]} Bg7 {[%emt 0:00:21]} 4. h3 {[%emt 0:01:47]} O-O {[%emt 0:00:35]} 5. e3 {[%emt 0:02:20]} d6 {[%emt 0:01:57]} 6. Be2 {[%emt 0:04:05]} b6 {[%emt 0:09:22]} 7. O-O {[%emt 0:04:55]} Bb7 {[%emt 0:00:22]} 8. a4 {[%emt 0:03:16]} a6 {[%emt 0:00:16]} 9. Nbd2 {[%emt 0:00:55]} Nbd7 {[%emt 0:00:24]} 10. Bh2 {[%emt 0:01:57]} c5 {[%emt 0:05:01]} 11. c3 {[%emt 0:01:54]} Re8 {[%emt 0:13:07]} 12. Qb3 {[%emt 0:14:00]} Bd5 {[%emt 0:26:10]} 13. Bc4 {[%emt 0:06:59]} Bxc4 {[%emt 0:01:00]} 14. Nxc4 {[%emt 0:01:09]} Qc7 {[%emt 0:11:24]} 15. Ng5 $11 {[%emt 0:22:38]} Rf8 {[%emt 0:01:11]} 16. Rfd1 {[%emt 0:08:58]} h6 {[%emt 0:02:29]} 17. Nf3 {[%emt 0:00:13]} Ne4 {[%emt 0:15:59]} 18. Nfd2 {[%emt 0:05:36]} Nxd2 {[%emt 0:01:21]} 19. Rxd2 {[%emt 0:00:34]} b5 {[%emt 0:03:51]} 20. Na3 {[%emt 0:07:14]} Rfb8 {[%emt 0:00:58]} 21. Rc1 {[%emt 0:06:14]} Qb7 {[%emt 0:01:21]} 22. Kh1 {[%emt 0:01:22]} Ra7 {[%emt 0:01:28]} 23. Qc2 {[%emt 0:00:33]} Qc6 {[%emt 0:01:04]} 24. axb5 {[%emt 0:00:30]} axb5 {[%emt 0:00:02]} 25. Rdd1 {[%emt 0:00:31]} c4 {[%emt 0:01:35]} 26. Nb1 {[%emt 0:00:21]} Rba8 {[%emt 0:00:28]} 27. Nd2 {[%emt 0:00:13]} Ra2 {[%emt 0:00:51]} 28. Rb1 {[%emt 0:00:22]} Nf6 {[%emt 0:00:45]} 29. Rdc1 {[%emt 0:00:54]} R8a6 {[%emt 0:00:31]} 30. f3 {[%emt 0:00:39]} Nd5 {[%emt 0:00:20]} 31. Bg1 {[%emt 0:00:29]} h5 {[%emt 0:00:21]} 32. e4 {[%emt 0:00:29]} Nf4 {[%emt 0:00:11]} 33. Rd1 {[%emt 0:00:32]} Nd3 {[%emt 0:00:25]} 34. d5 {[%emt 0:00:15]} Qd7 {[%emt 0:00:20]} 35. Nf1 {[%emt 0:00:36]} R6a3 {[%emt 0:00:58]} 36. Bd4 {[%emt 0:00:35]} Bxd4 {[%emt 0:00:40]} 37. cxd4 {[%emt 0:00:10]} Rb3 {[%emt 0:00:09]} 38. Rd2 {[%emt 0:00:49]} Raxb2 {[%emt 0:00:54]} 39. Rxb2 {[%emt 0:00:34]} Rxb2 {[%emt 0:00:01]} 40. Qd1 {[%emt 0:00:28]} Nf2+ {[%emt 0:01:02]} 41. Rxf2 {[%emt 0:00:13]} Rxf2 {[%emt 0:00:02]} 42. Kg1 {[%emt 0:00:28]} Ra2 {[%emt 0:00:10]} 43. Qb1 {[%emt 0:00:46]} Qa7 {[%emt 0:01:26]} 44. Qd1 {[%emt 0:00:28]} Qa3 {[%emt 0:00:28]} 45. Nd2 {[%emt 0:00:37]} Qe3+ {[%emt 0:00:18]} 0-1

[Event "Chile-ch Women 2019"]
[Site "Santiago Las Condes"]
[Date "2019.02.13"]
[Round "3.3"]
[White "Reyes Jara, Paula"]
[Black "Manriquez Abarzua, Maria Belen"]
[Result "1/2-1/2"]
[ECO "D45"]
[WhiteElo "1955"]
[BlackElo "1650"]
[Annotator "NA RC"]
[PlyCount "40"]
[EventDate "2019.02.12"]
[EventType "swiss"]
[EventCountry "CHI"]
[SourceTitle "playchess.com"]
[Source "ChessBase"]
[SourceQuality "1"]
[TimeControl "5400+30"]

1. d4 {[%emt 0:00:00]} d5 {[%emt 0:00:18]} 2. c4 {[%emt 0:00:41]} c6 {[%emt 0:00:31]} 3. Nc3 {[%emt 0:02:06]} Nf6 {[%emt 0:00:30]} 4. e3 {[%emt 0:04:21]} e6 {[%emt 0:00:29]} 5. Nf3 {[%emt 0:00:33]} Nbd7 {[%emt 0:04:16]} 6. cxd5 {[%emt 0:04:07]} exd5 {[%emt 0:01:31]} 7. Bd3 {[%emt 0:00:08]} Bd6 {[%emt 0:00:57]} 8. O-O {[%emt 0:00:43]} O-O {[%emt 0:00:19]} 9. e4 {[%emt 0:01:50]} dxe4 {[%emt 0:01:52]} 10. Nxe4 {[%emt 0:04:38]} Nxe4 {[%emt 0:00:28]} 11. Bxe4 {[%emt 0:00:10]} Nf6 {[%emt 0:00:08] D45: Semi-Slav: 5 e3} 12. Bc2 {[%emt 0:00:41]} (12. Bg5 Be7 13. Bxf6 Bxf6 14. Qd3 g6 15. h3 Be6 16. Rfd1 Bd5 17. b3 Re8 18. Bxd5 Qxd5 19. Rac1 {½-½ (58) Krajnak,J (2079)-Timko,M (2052) Slovakia 2018}) 12... h6 {[%emt 0:09:31]} 13. Qd3 {[%emt 0:05:30]} Re8 {[%emt 0:05:29]} 14. Bd2 {[%emt 0:08:03]} Qc7 $146 {[%emt 0:08:13]} ({Predecessor:} 14... Be6 15. Rfe1 Qc7 16. Bc3 Bd5 17. Ne5 g6 18. Qh3 Bf8 19. f4 {½-½ (47) Koci,L (1966)-Cermak,J (1740) Nachod 2013}) 15. g3 {[%emt 0:10:14]} Bg4 {[%emt 0:03:52]} 16. Rfe1 {[%emt 0:01:07]} Rxe1+ {[%emt 0:06:31]} 17. Rxe1 {[%emt 0:00:16]} Rd8 {[%emt 0:02:08]} 18. Nh4 {[%emt 0:08:33]} Qd7 {[%emt 0:06:07]} 19. d5 {[%emt 0:12:35]} (19. Ba5 $11) 19... Bf8 {[%emt 0:13:29]} ({Don't play} 19... cxd5 $6 20. Bc3 $11) 20. Re5 $17 {[%emt 0:07:05]} Qc7 {[%emt 0:05:33]} 1/2-1/2

[Event "Chile-ch Women 2019"]
[Site "Santiago Las Condes"]
[Date "2019.02.13"]
[Round "3.4"]
[White "Sanchez Tobar, Francisca Valenti"]
[Black "Hormazabal Figueroa, Constanza Va"]
[Result "1/2-1/2"]
[ECO "A21"]
[WhiteElo "1817"]
[BlackElo "1624"]
[Annotator "NA RC"]
[PlyCount "109"]
[EventDate "2019.02.12"]
[EventType "swiss"]
[EventCountry "CHI"]
[SourceTitle "playchess.com"]
[Source "ChessBase"]
[SourceQuality "1"]
[TimeControl "5400+30"]

1. c4 {[%emt 0:00:37]} g6 {[%emt 0:00:18]} 2. Nc3 {[%emt 0:00:42]} Bg7 {[%emt 0:00:18]} 3. g3 {[%emt 0:00:17]} d6 {[%emt 0:00:25]} 4. e4 {[%emt 0:00:20]} e5 {[%emt 0:00:15]} 5. Bg2 {[%emt 0:00:14]} c6 {[%emt 0:00:15]} 6. Nge2 {[%emt 0:01:02]} h5 {[%emt 0:00:30]} 7. h3 {[%emt 0:00:17]} h4 {[%emt 0:00:10]} 8. d4 {[%emt 0:00:31]} hxg3 {[%emt 0:00:28]} 9. fxg3 {[%emt 0:00:27]} Nf6 {[%emt 0:02:49]} 10. Be3 {[%emt 0:04:25]} Nbd7 {[%emt 0:13:52]} 11. Qd2 {[%emt 0:13:25]} a6 {[%emt 0:05:01]} 12. a4 {[%emt 0:28:19]} Qa5 {[%emt 0:04:15]} 13. d5 {[%emt 0:28:51]} c5 {[%emt 1:07:54]} 14. g4 {[%emt 0:06:22]} Rb8 {[%emt 0:00:00]} 15. Ra2 {[%emt 0:03:41]} Qb4 {[%emt 0:00:00]} 16. a5 {[%emt 0:00:12]} b5 {[%emt 0:00:00]} 17. cxb5 {[%emt 0:00:20]} axb5 {[%emt 0:00:00]} 18. O-O {[%emt 0:00:13]} Ra8 {[%emt 0:00:00]} 19. Rfa1 {[%emt 0:01:38]} Ra6 {[%emt 0:00:00]} 20. Ng3 {[%emt 0:02:30]} c4 {[%emt 0:00:00]} 21. Nb1 {[%emt 0:03:06]} Qxd2 {[%emt 0:00:00]} 22. Nxd2 {[%emt 0:00:02]} Nc5 {[%emt 0:00:00]} 23. Bxc5 {[%emt 0:01:03]} dxc5 {[%emt 0:00:00]} 24. Kf2 {[%emt 0:01:44]} Bd7 {[%emt 0:00:00]} 25. Ke2 {[%emt 0:01:01]} Ke7 {[%emt 0:00:00]} 26. Ngf1 {[%emt 0:00:32]} Rha8 {[%emt 0:00:00]} 27. Ne3 {[%emt 0:00:20]} Bh6 {[%emt 0:00:00]} 28. Nef1 {[%emt 0:00:51]} Ne8 {[%emt 0:00:00]} 29. Ng3 {[%emt 0:00:49]} Nd6 {[%emt 0:00:00]} 30. Nf3 {[%emt 0:00:33]} Bf4 {[%emt 0:00:00]} 31. Nf1 {[%emt 0:00:14]} Nb7 {[%emt 0:00:00]} 32. Ne3 {[%emt 0:00:33]} Rxa5 {[%emt 0:00:00]} 33. Rxa5 {[%emt 0:00:22]} Rxa5 {[%emt 0:00:00]} 34. Rxa5 {[%emt 0:00:11]} Nxa5 {[%emt 0:00:00]} 35. Nd2 {[%emt 0:00:45]} Kd6 {[%emt 0:00:00]} 36. Bf3 {[%emt 0:00:36]} Bxe3 {[%emt 0:00:00]} 37. Kxe3 {[%emt 0:00:04]} g5 {[%emt 0:00:00]} 38. Be2 {[%emt 0:00:20]} Nb3 {[%emt 0:00:00]} 39. Nf3 {[%emt 0:01:17]} f6 {[%emt 0:00:00]} 40. Bd1 {[%emt 0:00:29]} Nd4 {[%emt 0:00:00]} 41. Nd2 {[%emt 0:00:23]} Bc8 {[%emt 0:00:00]} 42. Nf3 {[%emt 0:00:41]} Nxf3 {[%emt 0:00:00]} 43. Bxf3 {[%emt 0:00:03]} b4 {[%emt 0:00:00]} 44. Kd2 {[%emt 0:00:21]} Ba6 {[%emt 0:00:00]} 45. Kc2 {[%emt 0:00:19]} Bb5 {[%emt 0:00:00]} 46. Be2 {[%emt 0:01:02]} Ba4+ {[%emt 0:00:00]} 47. Kd2 {[%emt 0:00:16]} Bb3 {[%emt 0:00:00]} 48. Bf1 {[%emt 0:00:17]} Ba2 {[%emt 0:00:00]} 49. Kc2 {[%emt 0:01:10]} Kc7 {[%emt 0:00:02]} 50. Be2 {[%emt 0:00:26]} Kb6 {[%emt 0:00:51]} 51. Bf1 {[%emt 0:00:15]} Bb3+ {[%emt 0:00:24]} 52. Kd2 {[%emt 0:00:04]} Kc7 {[%emt 0:01:54]} 53. Be2 {[%emt 0:00:13]} Kd6 {[%emt 0:00:32]} 54. Bf1 {[%emt 0:00:15]} Ba2 {[%emt 0:00:24]} 55. Kc2 {[%emt 0:00:05]} 1/2-1/2

[Event "Chile-ch Women 2019"]
[Site "Santiago Las Condes"]
[Date "2019.02.13"]
[Round "3.5"]
[White "Abdala Cancino, Patricia Anastas"]
[Black "Urrutia Cordova, Camila"]
[Result "1-0"]
[ECO "A05"]
[WhiteElo "1534"]
[BlackElo "1694"]
[Annotator "NA RC"]
[PlyCount "93"]
[EventDate "2019.02.12"]
[EventType "swiss"]
[EventCountry "CHI"]
[SourceTitle "playchess.com"]
[Source "ChessBase"]
[SourceQuality "1"]
[TimeControl "5400+30"]

1. e4 {[%emt 0:02:35]} c5 {[%emt 0:00:43]} 2. d3 {[%emt 0:00:41]} d6 {[%emt 0:00:53]} 3. g3 {[%emt 0:00:33]} Nc6 {[%emt 0:00:54]} 4. Bg2 {[%emt 0:00:32]} g6 {[%emt 0:00:59]} 5. Nf3 {[%emt 0:00:21]} Bg7 {[%emt 0:00:30]} 6. c3 {[%emt 0:01:11]} Nf6 {[%emt 0:06:16]} 7. O-O {[%emt 0:01:40]} O-O {[%emt 0:01:33]} 8. Re1 {[%emt 0:00:36]} Rb8 {[%emt 0:13:42]} 9. Nbd2 {[%emt 0:05:20]} Nd7 {[%emt 0:01:22]} 10. Nf1 {[%emt 0:01:07]} b5 {[%emt 0:03:27]} 11. Ne3 {[%emt 0:03:41]} e6 {[%emt 0:05:13]} 12. h4 {[%emt 0:04:23]} b4 {[%emt 0:04:42]} 13. Qc2 {[%emt 0:01:44]} Ba6 {[%emt 0:04:19]} 14. Ng4 {[%emt 0:07:44]} h5 {[%emt 0:02:35]} 15. Ngh2 {[%emt 0:03:42]} Nce5 {[%emt 0:01:03]} 16. Rd1 {[%emt 0:08:18]} Qa5 {[%emt 0:03:17]} 17. d4 {[%emt 0:02:15]} cxd4 {[%emt 0:00:41]} 18. cxd4 {[%emt 0:00:44]} Rfc8 {[%emt 0:00:12]} 19. Qb1 {[%emt 0:02:00]} Be2 {[%emt 0:04:41]} 20. Rd2 {[%emt 0:02:35]} Nxf3+ {[%emt 0:00:22]} 21. Nxf3 {[%emt 0:00:21]} Ba6 {[%emt 0:01:41]} 22. b3 {[%emt 0:06:41]} Rc7 {[%emt 0:02:10]} 23. Bb2 {[%emt 0:00:45]} Rbc8 {[%emt 0:00:33]} 24. Bf1 {[%emt 0:07:01]} Bb7 {[%emt 0:01:41]} 25. Bd3 {[%emt 0:05:35]} Nf6 {[%emt 0:02:20]} 26. Qe1 {[%emt 0:01:20]} d5 {[%emt 0:03:13]} 27. e5 {[%emt 0:02:34]} Ne4 {[%emt 0:02:02]} 28. Bxe4 {[%emt 0:02:19]} dxe4 {[%emt 0:00:49]} 29. Ng5 {[%emt 0:02:51]} Qd5 {[%emt 0:00:15]} 30. Re2 {[%emt 0:02:34]} Rc2 {[%emt 0:03:21]} 31. Rd1 {[%emt 0:02:00]} e3 {[%emt 0:05:25]} 32. f3 {[%emt 0:04:18]} Ba6 {[%emt 0:03:39]} 33. Rxc2 {[%emt 0:01:43]} Rxc2 {[%emt 0:00:05]} 34. Bc1 {[%emt 0:01:44]} e2 {[%emt 0:04:01]} 35. Rd2 {[%emt 0:00:31]} Rc3 {[%emt 0:00:30]} 36. Bb2 {[%emt 0:00:48]} Rc7 {[%emt 0:01:37]} 37. Kf2 {[%emt 0:01:09]} f6 {[%emt 0:02:15]} 38. exf6 {[%emt 0:00:27]} Bxf6 {[%emt 0:00:33]} 39. Ne4 {[%emt 0:00:08]} Bg7 {[%emt 0:00:46]} 40. Qb1 {[%emt 0:02:15]} Rf7 {[%emt 0:04:27]} 41. Ng5 {[%emt 0:00:17]} Rf6 {[%emt 0:00:45]} 42. Qe4 {[%emt 0:00:28]} Qd7 {[%emt 0:01:36]} 43. d5 {[%emt 0:00:49]} exd5 {[%emt 0:01:22]} 44. Rxd5 {[%emt 0:01:27]} Rd6 {[%emt 0:01:54]} 45. Rxd6 {[%emt 0:10:43]} Qxd6 {[%emt 0:00:04]} 46. Qe8+ {[%emt 0:00:00]} Bf8 {[%emt 0:01:09]} 47. Qf7# {[%emt 0:01:00]} 1-0